Cogmind - Beta 12 @@@ ROGUE MODE // 2023.07.19 @ 21:43:48 Player: javashane Result: Self-destructed Performance ------------- Evolutions (2) 1000 Regions Visited (5) 1000 Robots Destroyed (43) 215 Value Destroyed (1240) 1240 Prototype IDs (4) 80 Alien Tech Used (0) 0 Bonus (366) 366 TOTAL SCORE: 3901 Bonus ------- High Alert Combat Kills 66 Aligned with FarCom 300 Cogmind --------- Core Integrity 422/550 Matter 285/300 Energy 20/1600 System Corruption 31% Temperature Cool (0) Movement Walking (120) Location -8/Materials Parts ------- > --- POWER (1) -------- (None) > --- PROPULSION (4) --- Aluminum Leg Aluminum Leg Aluminum Leg Carbon-fiber Leg > --- UTILITY (4) ------ Medium Storage Unit Superbattery Improved Sensor Array > --- WEAPON (2) ------- Latent Energy Streamer > --- INVENTORY (10) --- Aluminum Leg Aluminum Leg Weight Redist. System Transport Network Coupler Skeleton Box Faulty Heavy Particle Gun Peak State ------------ > --- POWER ------------ Light Nuclear Core > --- PROPULSION ------- Aluminum Leg Aluminum Leg Carbon-fiber Leg Carbon-fiber Leg > --- UTILITY ---------- Superbattery Improved Terrain Scan Processor Medium Armor Plating Medium Armor Plating > --- WEAPON ----------- Latent Energy Streamer Heavy Particle Cannon > --- INVENTORY -------- Light Ion Engine Aluminum Leg Aluminum Leg Skeleton Box [Rating: 41] Favorites ----------- Power Ion Engine Engine Ion Engine Power Core Light Nuclear Core Propulsion Aluminum Leg Leg Aluminum Leg Utility Medium Armor Plating Device Improved Sensor Array Storage Superbattery Processor Improved Terrain Scan Processor Protection Medium Armor Plating Weapon Improved Light Cannon Energy Gun EM Pulse Gun Energy Cannon Latent Energy Streamer Ballistic Gun Assault Rifle Ballistic Cannon Improved Light Cannon Build | -11 -10 -10 -10 -9 -8 ------- Run | Jun Mat Min Exi Min Mat Slots Evolved 4 | . . . . . 4 Power . | . . . . . . Propulsion 2 | . . . . . 2 Utility 2 | . . . . . 2 Weapon . | . . . . . . Parts Attached 43 | 7 8 1 7 . 20 Power 6 | 1 1 . 1 . 3 Engine 4 | 1 1 . 1 . 1 Core 2 | . . . . . 2 Reactor . | . . . . . . Propulsion 8 | 2 . . 1 . 5 Treads . | . . . . . . Leg 8 | 2 . . 1 . 5 Wheel . | . . . . . . Hover . | . . . . . . Flight . | . . . . . . Utility 18 | 2 4 . 4 . 8 Device 3 | 1 . . 1 . 1 Storage 5 | 1 . . 2 . 2 Processor 3 | . 2 . . . 1 Hackware . | . . . . . . Protection 7 | . 2 . 1 . 4 Artifact . | . . . . . . Weapon 11 | 2 3 1 1 . 4 Energy Gun 2 | 1 . . . . 1 Energy Cannon 4 | . . . 1 . 3 Ballistic Gun 2 | 1 1 . . . . Ballistic Cannon 3 | . 2 1 . . . Launcher . | . . . . . . Special Weapon . | . . . . . . Impact Weapon . | . . . . . . Slashing Weapon . | . . . . . . Piercing Weapon . | . . . . . . Special Melee Weapon . | . . . . . . Unidentified Prototypes 4 | . . . 3 . 1 Parts Lost 7 | . . 1 . . 6 Power 2 | . . . . . 2 Propulsion 1 | . . . . . 1 Utility 2 | . . . . . 2 Weapon 2 | . . 1 . . 1 Highest Loss Streak 3 | . . 1 . . 3 To Critical Strikes 1 | . . 1 . . . Average Slot Usage (%) 98 | . 99 99 100 100 96 Engine 11 | . 14 14 14 14 6 Leg 31 | . 28 28 28 28 35 Device 2 | . 7 . . . 3 Storage 12 | . 14 14 14 14 9 Processor 2 | . 3 . . . 4 Protection 12 | . 1 14 14 14 16 Energy Gun 1 | . 6 . . . . Energy Cannon 7 | . . . 6 14 12 Ballistic Gun 2 | . 10 . . . . Ballistic Cannon 12 | . 10 27 21 14 4 Naked Turns . | . . . . . . Heaviest Build 37 | 15 23 23 30 30 37 Greatest Support 50 | 20 20 20 20 20 50 Greatest Overweight (x) 1 | . 1 1 1 1 1 Average Overweight (x) . | . . . . 1 . Largest Inventory Capacity 10 | 8 8 8 8 5 10 Average Capacity 6 | 7 8 8 6 5 5 Most Carried 8 | 6 8 8 8 5 7 Average Carried 5 | 3 6 7 6 5 3 Final Capacity 10 | 8 8 8 5 5 10 Final Carried 8 | 6 8 8 5 5 6 Class Distribution -------------------- 86% | Mutant 11% | Scavenger-Mutant Dominant Class ---------------- Mutant | -10/Materials Mutant | -10/Mines Mutant | -10/Exiles Mutant | -9/Mines Mutant | -8/Materials Resources | -11 -10 -10 -10 -9 -8 ----------- Run | Jun Mat Min Exi Min Mat Matter Collected 904 | 186 349 55 . 19 295 Remotely . | . . . . . . Salvage Created 1633 | 22 351 22 . 19 1219 Parts 94 | 1 23 3 . 3 64 Haulers Intercepted 2 | . 1 . . . 1 Recyclers Shooed 1 | . 1 . . . . Parts Field Recycled . | . . . . . . Retrieved Matter . | . . . . . . Parts Self-Destructed . | . . . . . . Prevented . | . . . . . . Kills | -11 -10 -10 -10 -9 -8 ------- Run | Jun Mat Min Exi Min Mat Combat Hostiles Destroyed 29 | . 10 3 . . 16 Guns 2 | . 2 . . . . Cannons 18 | . 8 3 . . 7 AOE 7 | . . . . . 7 Classes Destroyed 11 | 1 3 1 . 1 5 Worker 5 | . . . . 1 4 Builder 2 | . . 1 . . 1 Tunneler 2 | 1 . . . . 1 Hauler 2 | . 1 . . . 1 Recycler 1 | . . . . . 1 Operator 1 | . . . . . 1 Watcher 1 | . . . . . 1 Swarmer 5 | . 2 3 . . . Grunt 17 | . 8 . . . 9 Duelist 2 | . . . . . 2 Sentry 5 | . . . . . 5 Best Kill Streak 8 | 1 6 4 . 1 8 Combat Bots Only 6 | . 6 3 . . 5 Max Kills in Single Turn 3 | 1 1 2 . 1 3 Gunslinging . | . . . . . . Exploded 1 | . . . . . 1 Melee . | . . . . . . Uniques/NPCs Destroyed . | . . . . . . Combat | -11 -10 -10 -10 -9 -8 -------- Run | Jun Mat Min Exi Min Mat Damage Taken 1997 | . 425 196 . . 1376 Core 207 | . 62 17 . . 128 Absorbed by Shields . | . . . . . . Regen/Repaired (Parts) 42 | . . . . . 42 Core Remaining (%) 84 | 100 . . . 68 . Volleys Fired 82 | 2 26 13 . . 41 Largest 2 | 2 2 2 . . 2 Hottest 135 | 60 78 78 . . 135 Shots Fired 142 | 4 52 23 . . 63 Gun 24 | 4 20 . . . . Cannon 118 | . 32 23 . . 63 Launcher . | . . . . . . Special . | . . . . . . Kinetic 81 | 2 49 23 . . 7 Thermal 40 | . . . . . 40 Explosive . | . . . . . . Electromagnetic 21 | 2 3 . . . 16 Robot Hit Streak 9 | 1 7 5 . . 9 Robot Miss Streak 5 | 1 4 4 . . 5 Penetration Max . | . . . . . . Secondary Targets 1 | . 1 . . . . Max Gunslinging Chain 1 | . 1 . . . . Shots Hit Robots 78 | 2 33 12 . . 31 Core Hits 66 | 2 16 5 . 1 42 Critical Kills 1 | . . . . . 1 Critical Parts Destroyed . | . . . . . . Critical Strikes 2 | . 1 . . . 1 Meltdown 1 | . . . . . 1 Blast 1 | . 1 . . . . Melee Attacks . | . . . . . . Impact . | . . . . . . Slashing . | . . . . . . Piercing . | . . . . . . Sneak Attacks . | . . . . . . Combat Hostiles . | . . . . . . Follow-up Attacks . | . . . . . . Damage Inflicted 3379 | 71 610 282 . 13 2403 Guns 183 | 35 148 . . . . Cannons 1459 | . 462 274 . . 723 Explosions 1706 | 36 . . . . 1670 Melee . | . . . . . . Ramming 31 | . . 8 . 13 10 Kinetic 924 | 22 585 274 . . 43 Thermal 834 | 36 . . . . 798 Explosive . | . . . . . . Electromagnetic 1590 | 13 25 . . . 1552 Impact . | . . . . . . Slashing . | . . . . . . Piercing . | . . . . . . Highest Corruption 31 | . . . . . 31 Average Corruption 19 | . . . . . 19 Corruption Purged . | . . . . . . Corruption Blocked . | . . . . . . Effects 30 | . . . . . 30 Message Errors 7 | . . . . . 7 Matter Fused 4 | . . . . . 4 Heat Flow Errors 3 | . . . . . 3 Energy Discharges 4 | . . . . . 4 Parts Rejected 2 | . . . . . 2 Data Loss (minor) 4 | . . . . . 4 Data Loss (major) 1 | . . . . . 1 Misfires 1 | . . . . . 1 Alerts 1 | . . . . . 1 Misdirections 3 | . . . . . 3 Overload Shots . | . . . . . . Overflow Damage 93 | . . 13 . . 80 Projectiles 28 | . . 13 . . 15 Explosions 65 | . . . . . 65 Melee . | . . . . . . Knockbacks 8 | . 5 2 . . 1 Impact . | . . . . . . Kinetic 7 | . 4 2 . . 1 Secondary 1 | . 1 . . . . Self-Inflicted Damage 334 | . . . . . 334 Shots 4 | . . . . . 4 Rammed . | . . . . . . Targets Rammed 8 | . . 4 . 1 3 Kicked 8 | . . 4 . 1 3 Crushed . | . . . . . . Highest Temperature 257 | . 246 218 . . 257 Average Temperature 103 | . 103 126 . . 98 Received Heat Transfer 639 | . 171 . . . 468 Effects 3 | . . . . . 3 Interference 3 | . . . . . 3 Siege Activations . | . . . . . . Robots Corrupted 1 | . . . . . 1 Combat Hostiles 1 | . . . . . 1 Parts Fried 8 | . 1 . . . 7 Impact Corruptions . | . . . . . . Robots Melted 1 | . . . . . 1 Combat Hostiles 1 | . . . . . 1 Parts Melted 1 | . . . . . 1 Heat Transferred 1138 | 50 . . . . 1088 Parts Sabotaged . | . . . . . . Parts Stolen . | . . . . . . Parts Stripped . | . . . . . . Power Chain Reactions 4 | 1 . . . . 3 Missiles Intercepted . | . . . . . . Latent Energy Used 1488 | . . . . . 1488 LE Corruption 30 | . . . . . 30 Alert | -11 -10 -10 -10 -9 -8 ------- Run | Jun Mat Min Exi Min Mat Peak Influence 530 | 5 199 164 . 5 530 Initial 69 | . 3 69 . . 1 Average 121 | 4 67 108 . 1 196 Maximum Alert Level 2 | . . . . . 2 Low Security (%) 78 | 100 100 100 . 100 52 Level 1 17 | . . . . . 37 Level 2 4 | . . . . . 9 Level 3 . | . . . . . . Level 4 . | . . . . . . Level 5 . | . . . . . . High Security . | . . . . . . Max Security . | . . . . . . Squads Dispatched 5 | . 2 . . . 3 Investigation 2 | . . . . . 2 Extermination . | . . . . . . Reinforcement 3 | . 2 . . . 1 Assault . | . . . . . . Garrison . | . . . . . . Intercept . | . . . . . . Searches Triggered . | . . . . . . Construction Impeded . | . . . . . . Haulers Reinforced . | . . . . . . Active Scanning Responses . | . . . . . . Cargo Convoy Interrupts . | . . . . . . Stealth | -11 -10 -10 -10 -9 -8 --------- Run | Jun Mat Min Exi Min Mat Distress Signals 2 | . 1 . . . 1 Communications Jammed . | . . . . . . Distress Signals . | . . . . . . Times Spotted 50 | . 18 5 . 3 24 Peak Tracking Total 9 | . 9 3 . 2 8 Tactical Retreats 5 | . 2 2 . . 1 Traps | -11 -10 -10 -10 -9 -8 ------- Run | Jun Mat Min Exi Min Mat Traps Triggered . | . . . . . . Indirectly . | . . . . . . Trap Hack Attempts . | . . . . . . Triggered . | . . . . . . Disarmed . | . . . . . . Reprogrammed . | . . . . . . Reused . | . . . . . . Traps Extracted . | . . . . . . Installed . | . . . . . . Triggered . | . . . . . . Machines | -11 -10 -10 -10 -9 -8 ---------- Run | Jun Mat Min Exi Min Mat Machines Disabled 7 | . 1 . . . 6 Max in Single Turn 2 | . 1 . . . 2 Machines Repaired . | . . . . . . Machines Sabotaged . | . . . . . . Overloaded Fab Kills . | . . . . . . Hacking | -11 -10 -10 -10 -9 -8 --------- Run | Jun Mat Min Exi Min Mat Machines Accessed 7 | . 2 . 1 . 4 Terminals 2 | . 1 . . . 1 Fabricators . | . . . . . . Repair Stations 1 | . . . . . 1 Recycling Units 2 | . 1 . . . 1 Scanalyzers 1 | . . . . . 1 Garrison Access . | . . . . . . Total Hacks 19 | . 6 . 2 . 11 Successful 13 | . 5 . 2 . 6 Failed 5 | . 1 . . . 4 Catastrophic 1 | . . . . . 1 Database Lockouts 1 | . . . . . 1 Manual 5 | . 1 . 1 . 3 Terminals 7 | . 4 . . . 3 Fabricators . | . . . . . . Repair Stations 4 | . . . . . 4 Recycling Units 4 | . 2 . . . 2 Scanalyzers 2 | . . . . . 2 Garrison Access . | . . . . . . Terminal Hacks 6 | . 3 . 2 . 1 Record 4 | . 2 . 2 . . Robot Analysis 1 | . . . . . 1 Zone Layout 1 | . 1 . . . . Fabricator Hacks . | . . . . . . Repair Station Hacks 2 | . . . . . 2 Scan Component 1 | . . . . . 1 Repair 1 | . . . . . 1 Recycling Unit Hacks 3 | . 2 . . . 1 Process 1 | . 1 . . . . Retrieve Components 2 | . 1 . . . 1 Scanalyzer 2 | . . . . . 2 Insert Component 1 | . . . . . 1 Analyze 1 | . . . . . 1 Garrison Access Hacks . | . . . . . . Unauthorized Hacks . | . . . . . . Terminals . | . . . . . . Fabricators . | . . . . . . Repair Stations . | . . . . . . Recycling Units . | . . . . . . Scanalyzers . | . . . . . . Garrison Access . | . . . . . . Data Cores Recovered . | . . . . . . Used . | . . . . . . Hacking Detections 5 | . 1 . . . 4 Full Trace Events 3 | . 1 . . . 2 Feedback Events . | . . . . . . Feedback Blocked . | . . . . . . Robot Schematics Acquired . | . . . . . . Robots Built . | . . . . . . Authchips . | . . . . . . Time . | . . . . . . Total Robot Build Rating . | . . . . . . Part Schematics Acquired 1 | . . . . . 1 Parts Built . | . . . . . . Authchips . | . . . . . . Time . | . . . . . . Total Part Build Rating . | . . . . . . Parts Repaired 1 | . . . . . 1 Time 38 | . . . . . 38 Parts Recycled . | . . . . . . Recycled Matter 48 | . 48 . . . . Retrieved Matter . | . . . . . . Retrieved Components 9 | . . . . . 9 Parts Scanalyzed 1 | . . . . . 1 Part Schematics Acquired 1 | . . . . . 1 Parts Damaged . | . . . . . . Bothacking | -11 -10 -10 -10 -9 -8 ------------ Run | Jun Mat Min Exi Min Mat Used RIF Installer . | . . . . . . Robots Hacked . | . . . . . . Non-combat . | . . . . . . Combat . | . . . . . . Robot Hacks Applied . | . . . . . . Relay Couplers Released . | . . . . . . Fabnet Peak Effective % . | . . . . . . Robots Rewired . | . . . . . . Allies Hacked . | . . . . . . Hacks Repelled . | . . . . . . Allies | -11 -10 -10 -10 -9 -8 -------- Run | Jun Mat Min Exi Min Mat Total Allies . | . . . . . . Largest Group . | . . . . . . Highest-Rated Group . | . . . . . . Highest-Rated Ally . | . . . . . . Total Orders . | . . . . . . Ally Attacks . | . . . . . . Total Damage . | . . . . . . Kills . | . . . . . . Allies Corrupted . | . . . . . . Allies Melted . | . . . . . . Intel | -11 -10 -10 -10 -9 -8 ------- Run | Jun Mat Min Exi Min Mat Robot Analysis Total 1 | . . . . . 1 Derelict Logs Recovered 1 | . . 1 . . . Drone Launches . | . . . . . . Drone Recoveries . | . . . . . . Exploration | -11 -10 -10 -10 -9 -8 ------------- Run | Jun Mat Min Exi Min Mat Turns Passed 2803 | 123 539 344 532 234 1031 Spaces Moved 1492 | 87 311 154 269 123 548 Core 5 | 5 . . . . . Treads . | . . . . . . Legs 1487 | 82 311 154 269 123 548 Wheels . | . . . . . . Hover . | . . . . . . Flight . | . . . . . . Fastest Speed 50 | 50 120 120 120 190 120 Average Speed 146 | 115 127 189 189 190 120 Slowest Speed 190 | 120 190 190 190 190 190 Overloaded Moves . | . . . . . . Propulsion Burnouts . | . . . . . . Robots Hopped . | . . . . . . Cave-ins Triggered . | . . . . . . Exploration Rate (%) 30 | 5 34 27 60 28 27 Regions Visited 5 Branch Regions 3 Pre-discovered Areas 1 | . . 1 . . . Known Exits Taken . | . . . . . . Unknown Exits Taken 5 | 1 1 1 1 1 . Scrap Searched . | . . . . . . Spaces Dug 3 | . . . . . 3 Terrain Destroyed 136 | 3 2 . . . 131 Melee . | . . . . . . Projectile 13 | . 2 . . . 11 AOE 123 | 3 . . . . 120 Terrain Rammed . | . . . . . . Walls Destroyed . | . . . . . . Machines Disabled . | . . . . . . Actions | -11 -10 -10 -10 -9 -8 --------- Run | Jun Mat Min Exi Min Mat Total 1953 | 101 404 180 291 123 854 Wait 282 | . 33 8 8 . 233 Move 1487 | 86 310 153 268 122 548 Hop . | . . . . . . Pick Up 29 | 6 14 1 3 . 5 Fast Attach 18 | 7 2 . 2 . 7 Attach 8 | . . 1 . . 7 Detach 2 | . 1 . . . 1 Swap 17 | . 6 . 5 . 6 Drop 20 | . 12 . 5 . 3 Fire 82 | 2 26 13 . . 41 Melee . | . . . . . . Ram . | . . . . . . Kick 8 | . . 4 . 1 3 Crush . | . . . . . . Escape Stasis . | . . . . . . Rewire . | . . . . . . Trap . | . . . . . . Miscellaneous . | . . . . . . Route ------- -11/Junkyard -10/Materials (discovered 2 exits: [*Mat] / [*Min]) -10/Mines -10/Exiles -9/Mines -8/Materials History --------- Turn | Location | Event 24 | -11/Junkyard | Discovered new exit (range 14) 124 | -11/Junkyard | Entered Materials 315 | -10/Materials | Build established: Mutant 351 | -10/Materials | Discovered new exit (range 15) 485 | -10/Materials | Discovered new exit (range 16) 663 | -10/Materials | Entered Mines 702 | -10/Mines | Met a Derelict bent on vengeance 812 | -10/Mines | Learned location of Mines (-9) 996 | -10/Mines | Deemed a non-threat by the Exiles lab entrance 998 | -10/Mines | Discovered new exit (range 5) 1007 | -10/Mines | Entered Exiles 1070 | -10/Exiles | Met 8R-AWN 1099 | -10/Exiles | Met EX-HEX 1160 | -10/Exiles | Met EX-BIN 1199 | -10/Exiles | Aligned with FarCom system 1201 | -10/Exiles | Given EX-Vault access code 1275 | -10/Exiles | Opened EX-Vault 1287 | -10/Exiles | Found Prototype Storage 1289 | -10/Exiles | Identified Superbattery 1297 | -10/Exiles | Found Prototype Energy Cannon 1297 | -10/Exiles | Identified Latent Energy Streamer 1301 | -10/Exiles | Found Prototype Device 1302 | -10/Exiles | Identified Skeleton Box 1350 | -10/Exiles | Warned to stay clear of 0b10 Research branches 1372 | -10/Exiles | Exiles lab attacked by MAIN.C 1520 | -10/Exiles | Discovered new exit (range 11) 1539 | -10/Exiles | Stole three prototypes: Superbattery, Latent Energy Streamer, Skeleton Box 1539 | -10/Exiles | Entered Mines 1569 | -9/Mines | Assembled infested the area 1574 | -9/Mines | Assisted by a Guerilla fighting off Assembled 1756 | -9/Mines | Discovered new exit (range 9) 1773 | -9/Mines | Entered Materials 1773 | -8/Materials | Evolved 4 slots: Propulsion x2, Utility x2 2209 | -8/Materials | Central database locked down 2303 | -8/Materials | System corruption reached 10% 2466 | -8/Materials | Repaired Lgt. Nuclear Core 2792 | -8/Materials | System corruption reached 30% 2804 | -8/Materials | Self-destructed Last Messages --------------- 02787_ K-01 Serf collects debris. 02791_ Door malfunctions. 02791_ L-31 Rogue destroyed. 02791_ K-01 Serf destroyed. 02791_ Wheel fried. 02791_ K-01 Serf destroyed. 02791_ Fusion Modulator explodes. 02791_ Destroyed Imp. Heat Sink. 02791_ Destroyed Heat Sink. 02792_ K-01 Serf collects debris. 02794_ Critical hit (Burn: +37). 02794_ Knocked back. 02795_ K-01 Serf collects debris. 02796_ Hvy. Particle Cannon destroyed. 02796_ Lgt. Armor Plating destroyed. 02796_ Knocked back. 02796_ Acquired 8 matter. 02796_ Lgt. Ion Engine destroyed. 02796_ Critical hit (Burn: +37). 02803_ Acquired 2 matter. Map ----- +----------------------------------------------------+ | ???????????????????# ?????????? | | ???????????????#####+## #######+###????????????? | | ######?????????# " #??????????????????????? | | #?????????# " #??????????????????????? | | #????????## " #??????????????????????? | | #????????#" " #??????????????????????? | | ! #????????#" " %##?????????????????????? | | #?????????" ! "##????????????????????? | | #??????????""""" Y%" #????????????????????? | | #??????????? ==" #????????????????????? | | #???????????? =g=" #????????????????????? | | ???????????????# ! " #????????????????????? | | #+####????###?####### gg " #????????????????????? | | ##################; "#?????????????????????? | | [ #??????????????????????? | | [%[ ! #??????????????????????? | | [[ % #??????????????????????? | | =################### u#########??????????????? | | ## #???????????????# ## #??????????????? | | %%%#??????????????????# ##[ #??????????????? | | #??????????????????#u ## #??????????????? | | ##########?????????# ## " #??????????????? | | # T #??####???# ## """#??????????????? | | = # """ #### ##??# ## """#??????????????? | | !% # """ #""""""##?# ## """######+#???????? | | * # [ "" #" = #?# @## ! "" # #???????? | | # ## #?# ## """# !#???????? | | # ] / # !#?# ## ""#"S #???????? | | + ]| #" ### ## """#""" #???????? | | # | #" "## ## " # "" #???????? | | # ## " # ## # #???????? | | ##############+##### #####+######+####??????? | | % #??????? | | #??????? | | = ! #??????? | | ##########/#######"""########/#############??????? | | ???????#= *%[ ## ## #????????????? | | ???????#=![= ######### """ """ """ #????????????? | | ???????#%""" #???????# """ """ """ #????????????? | | ???????# """ #???????# """ """ """ #????????????? | | ???????# """ #???????# #????????????? | | ???????# #???????# [#????????????? | | ????????#######???????###############????????????? | | | | | | | | | | | | | | | +----------------------------------------------------+ Best States ------------- Heat Dissipation 31 Energy Generation 14 Energy Capacity 1750 Matter Stores 300 Matter Capacity 300 Sight Range 16 Robot Scan Range 15 Terrain Scan Density 110 Armor Coverage 450 Evasion (%) 55 Salvage Targeting 1 Item Schematics ----------------- Med. Armor Plating | -8/Materials | Scanalyzed Robot Schematics ------------------ None Fabricated ------------ Nothing Alien Tech Used ----------------- None Achievements -------------- None Challenges ------------ None Game ------ Seed PointyPhaseRipper Manual? 0 Play Time 00:51:11 Cumulative 14.1 hours Start 2023.07.19 @ 05:22:01 End 2023.07.19 @ 21:43:48 Sessions 5 Manual Loads 0 Difficulty Rogue Special Mode None Game No. 19 Rogue 18 Adventurer 1 Explorer 0 Win Type - Total 0 Types 0/0/0/0/0/0/0/0/0 Lore% 5 Gallery% 20 Achievement% 17 Wizard Run 0 Options --------- ASCII 0 Keyboard 0 Movement Arrows Keybinds 0 Fullscreen 1 Font 18/SmallcapsGlow Map View 76x50 Tactical HUD 1 Map Filters NONE Filters NONE Steam 1 RUN: 03e002ee-4fe7-4354-a320-257ff448c112